[Event "Chhattisgarh Masters GM 2022"]
[Site "Chhattisgarh"]
[Date "2022.09.19"]
[Round "1.2"]
[White "Nayak Rajesh"]
[Black "Singh Ojasva"]
[Result "1-0"]
[ECO "A11"]
[WhiteElo "2142"]
[BlackElo "2456"]
[Annotator "TA"]
[PlyCount "47"]
[EventDate "2022.09.19"]
[EventCountry "IND"]
[SourceTitle "playchess.com"]
[Source "ChessBase"]
[SourceQuality "1"]
[TimeControl "5400+30"]

{[%evp 12,47,0,-6,11,0,48,-20,-13,-16,-15,-15,-13,-12,-17,-8,-13,0,24,30,18,12,34,21,76,89,95,100,97,95,128,125,244,229,275,272,367,286]} 1. Nf3 {[%emt 0:00:13]} Nf6 {[%emt 0:00:18]} 2. g3 {[%emt 0:00:18]} d5 {[%emt 0:00:26]} 3. Bg2 {[%emt 0:00:08]} Bf5 {[%emt 0:00:08]} 4. O-O {[%emt 0:00:11]} e6 {[%emt 0:00:21]} 5. d3 {[%emt 0:00:07]} c6 {[%emt 0:01:12]} 6. c4 {[%emt 0:06:14]} dxc4 {[%emt 0:03:20]} 7. dxc4 {[%emt 0:02:33] RECAPT} Nbd7 {[%emt 0:01:04] CPLX 2.6. A11: English Opening: 1...c6.} 8. Nc3 {[%emt 0:02:27] CPLX 2.3 11 (Nf3-h4) (=6)} Qa5 {[%emt 0:02:45] [#] CPLX 2.3 48 (h7-h6) (=24)} (8... h6 $11) 9. Nd4 $146 {[%emt 0:24:10] RELBLUND 68 (Bc1-d2) (=26)} (9. Bd2 $14) ({Predecessor:} 9. Be3 O-O-O 10. Qa4 Bb4 11. Qxa5 Bxa5 12. Rac1 Bb6 13. Bxb6 Nxb6 14. b3 Nbd7 15. b4 {½-½ (50) Leupold,V (2326)-Hoebel,H (2456) ICCF email 2010}) 9... Bg6 $1 $11 {[%emt 0:04:56] CPLX 2.6. The position is equal.} 10. a3 {[%emt 0:06:19] CPLX 2.3} Qa6 {[%emt 0:09:53] BESTDEEP} 11. Qa4 {[%emt 0:05:17] BESTDEEP} Qxa4 {[%emt 0:04:34] EASY} 12. Nxa4 {[%emt 0:00:38] RECAPT} O-O-O {[%emt 0:08:26] CPLX 2.0 0 (h7-h5) (=8)} 13. Nf3 {[%emt 0:11:56] CPLX 2.0 0 (b2-b3) (=11)} Bc2 {[%emt 0:17:38] BESTDEEP} 14. Nc3 {[%emt 0:00:28] EASY} Bd6 {[%emt 0:11:46] CPLX 2.0 24 (Nf6-e4) (=9)} 15. b4 {[%emt 0:10:55] BESTDEEP} Ne5 {[%emt 0:05:48] CPLX 2.0} 16. Nd2 {[%emt 0:00:45] BESTDEEP} Bc7 {[%emt 0:09:48] CPLX 2.1 22 (g7-g5) (=9)} 17. Ra2 {[%emt 0:05:06] CPLX 2.1 13 (f2-f4) (=8)} Rxd2 {[%emt 0:07:08] RELBLUND 55 (Bc2-g6) (=14)} 18. Bxd2 $16 {[%emt 0:00:15][%cal Bc1d2,Bd2f4,Bf4g5][%mdl 32] RECAPT} Bb3 {[%emt 0:00:06] EASY} 19. Raa1 {[%emt 0:02:04] CPLX 2.8} Nxc4 {[%emt 0:01:23] CPLX 2.5} 20. Bf4 {[%emt 0:01:26] CPLX 2.8} e5 {[%emt 0:03:44] [#] CPLX 3.0 33 (Nf6-d5) (=13)} 21. Bg5 {[%emt 0:01:19] CPLX 2.9} a5 {[%emt 0:04:20] CPLX 2.7 119 (Nf6-e8) (=20)} (21... Ne8 $16) 22. b5 $18 {[%emt 0:01:34] BESTDEEP} cxb5 {[%emt 0:01:02] CPLX 3.0 46 (c6-c5) (=22)} 23. Nxb5 {[%emt 0:00:09] RECAPT} a4 {[%emt 0:00:57] CPLX 4.0 95 (Nc4-d6) (=26)} 24. Rfc1 {[%emt 0:00:22] Weighted Error Value: White=0.09 (flawless) /Black=0.32} 1-0

[Event "Chhattisgarh Masters GM 2022"]
[Site "Chhattisgarh"]
[Date "2022.09.19"]
[Round "1.2"]
[White "Kumar, Gaurav"]
[Black "Kaustuv, Kundu"]
[Result "0-1"]
[ECO "B77"]
[WhiteElo "2073"]
[BlackElo "2358"]
[Annotator "TA"]
[PlyCount "82"]
[EventDate "2022.09.19"]
[EventCountry "IND"]
[SourceTitle "playchess.com"]
[Source "ChessBase"]
[SourceQuality "1"]
[TimeControl "5400+30"]

{[%evp 22,82,15,22,24,12,14,12,18,-2,22,-19,-19,-19,-18,-39,-35,-66,-47,-42,-43,-52,-52,-66,-45,-41,-36,-95,-30,-37,-37,-37,-37,-40,-43,-63,-47,-56,-40,-46,-55,-97,-51,-63,-12,-33,-37,-137,-130,-279,-264,-385,-365,-538,-501,-563,-554,-529,-506,-547,-547,-12841,-12841]} 1. e4 {[%emt 0:00:12]} c5 {[%emt 0:00:16]} 2. Nf3 {[%emt 0:00:06]} Nc6 {[%emt 0:00:04]} 3. d4 {[%emt 0:00:27]} cxd4 {[%emt 0:00:05]} 4. Nxd4 {[%emt 0:00:06]} g6 {[%emt 0:00:04]} 5. Nc3 {[%emt 0:00:06]} Bg7 {[%emt 0:00:06]} 6. Be3 {[%emt 0:00:04]} Nf6 {[%emt 0:00:05]} 7. Bc4 {[%emt 0:00:54]} O-O {[%emt 0:00:08]} 8. Bb3 {[%emt 0:00:03]} d6 {[%emt 0:00:04]} 9. f3 {[%emt 0:00:04]} Nxd4 {[%emt 0:00:04]} 10. Bxd4 {[%emt 0:00:04]} Be6 {[%emt 0:00:05]} 11. Qd2 {[%emt 0:08:35]} Qa5 {[%emt 0:00:06]} 12. O-O {[%emt 0:01:30]} Rac8 {[%emt 0:02:04] CPLX 2.9 2 (Nf6-d7) (=2). B77: Sicilian Dragon: Yugoslav Attack, 9 Bc4 sidelines.} 13. Kh1 {[%emt 0:01:12] CPLX 2.9 12 (Rf1-f2) (=6)} Nd7 {[%emt 0:02:41] BESTDEEP} 14. Bxg7 {[%emt 0:01:28] CPLX 3.3 2 (f3-f4) (=5)} Kxg7 {[%emt 0:00:05] RECAPT. The position is equal.} 15. f4 {[%emt 0:01:20][%cal Bf3f4,Bf4f5][%mdl 32] [#] CPLX 3.7 20 (Rf1-e1) (=9)} Qc5 $146 {[%emt 0:12:20] CPLX 3.0 24 (Nd7-f6) (=7)} ({Predecessor:} 15... Nf6 16. Rae1 Rfd8 17. Qe2 Qh5 18. Qf2 Rc5 19. Bxe6 fxe6 20. e5 Ng4 21. Qg3 dxe5 {½-½ (29) Dubov,D (2703)-Zvjaginsev,V (2644) Sochi 2018}) 16. f5 {[%emt 0:07:08] CPLX 2.8 41 (Ra1-e1) (=15)} Bxb3 {[%emt 0:00:42] CPLX 4.0} 17. cxb3 {[%emt 0:09:56] RECAPT} Nf6 {[%emt 0:06:37] CPLX 3.4} 18. Qf4 {[%emt 0:16:03] CPLX 3.3 21 (a2-a3) (=14)} Qe5 {[%emt 0:00:44] CPLX 3.4} 19. Rad1 {[%emt 0:05:11] CPLX 3.4 31 (Qf4-f2) (=16)} Qxf4 {[%emt 0:01:41] CPLX 3.5 19 (b7-b5) (=6)} (19... b5 {is more complex.} 20. Kg1 Rc5 21. b4 Rc4) 20. Rxf4 {[%emt 0:00:09] RECAPT} Rc5 {[%emt 0:00:14] CPLX 2.3} 21. Rff1 {[%emt 0:09:03] CPLX 2.4 9 (Rd1-d4) (=14)} Rfc8 {[%emt 0:02:49] CPLX 2.3 0 (Rc5-e5) (=5)} 22. Rd4 {[%emt 0:00:39] CPLX 2.4 14 (h2-h3) (=14)} Re5 {[%emt 0:05:18] CPLX 2.5 21 (g6xf5) (=6)} 23. h3 {[%emt 0:02:16] CPLX 2.3} h5 {[%emt 0:04:47] CPLX 2.3 5 (a7-a6) (=6)} 24. g3 {[%emt 0:01:04] CPLX 2.3 59 (f5xg6) (=16)} (24. fxg6 $15 fxg6 25. Kg1) 24... Kh6 {[%emt 0:06:31] CPLX 2.3 65 (g6xf5) (=10)} (24... gxf5 $17 25. exf5 Kh6) 25. Kg2 {[%emt 0:02:33] CPLX 2.3 7 (f5xg6) (=15)} gxf5 {[%emt 0:07:24] CPLX 2.4} 26. Rxf5 {[%emt 0:02:00] RECAPT} Rxf5 {[%emt 0:01:51] RECAPT} 27. exf5 $15 {[%emt 0:31:47][%mdl 4096] Endgame KRN-KRN. RECAPT} Rc5 {[%emt 0:01:22] BESTDEEP} 28. g4 {[%emt 0:00:00] CPLX 2.0 20 (Rd4-b4) (=14)} hxg4 {[%emt 0:01:16] CPLX 2.3 16 (Kh6-g5) (=9)} 29. hxg4 {[%emt 0:00:00] RECAPT} Kg5 {[%emt 0:05:10] CPLX 2.0 16 (Rc5-e5) (=9)} 30. Kf3 {[%emt 0:00:00] CPLX 2.2 6 (Nc3-e4) (=13)} Re5 {[%emt 0:00:39] CPLX 2.2} 31. Ne2 {[%emt 0:00:00] CPLX 2.1 42 (a2-a3) (=14)} d5 {[%emt 0:04:56] Black is more active. CPLX 2.2 46 (Re5-d5) (=11)} (31... Rd5 $17 {...Rxd4 is the strong threat.} 32. Rxd5 Nxd5) 32. Nc3 {[%emt 0:00:00] CPLX 2.2} e6 {[%emt 0:03:22] RELBLUND 51 (b7-b6) (=13)} (32... b6 $15) 33. fxe6 {[%emt 0:00:00] CPLX 2.5 21 (Nc3-b5) (=14)} (33. Nb5 $5 {[%cal Rb5d6]} exf5 34. gxf5 $15) 33... fxe6 {[%emt 0:00:04] RECAPT} 34. Ra4 {[%emt 0:00:00] RELBLUND 100 (Nc3-e2) (=18)} (34. Ne2 $15) 34... Re1 $17 {[%emt 0:05:06] CPLX 2.1=>BLUNDERREACT} 35. Rxa7 {[%emt 0:00:00] White does not recover from this. CPLX 2.2 149 (Kf3-f2) (=23)} (35. Kf2 $17 {was necessary.} Rh1 36. Kg2) 35... d4 $19 {[%emt 0:00:56][%cal Bd5d4,Bd4d3,Bd3d2][%mdl 32] EASY} (35... Nxg4 36. Rxb7 Ne5+ 37. Kf2 Nd3+ 38. Kf3 $15) 36. Ra5+ {[%emt 0:00:00] [#] CPLX 2.7 121 (Ra7xb7) (=27)} (36. Rxb7 $142 Re3+ 37. Kg2) 36... Kh4 $1 {[%emt 0:05:26] DEEPSTRONG=>BLUNDERREACT} ({Stronger than} 36... e5 37. Ne2 d3 38. Rxe5+ Kh4 39. Rf5 $17 (39. Re6 $2 Nxg4 40. Nf4 Rf1+ 41. Ke4 d2 $19)) 37. Ne2 {[%emt 0:00:56] CPLX 2.8 173 (Ra5-b5) (=33)} (37. Rb5 $142 Nxg4 38. Rxb7 (38. Ne4 $2 e5 $19)) 37... d3 {[%emt 0:01:34] CPLX 3.0=>BLUNDERREACT. Black is clearly winning.} 38. Nc3 {[%emt 0:00:53] CPLX 3.3 62 (Kf3-e3) (=34)} d2 {[%emt 0:02:50] DEEPSTRONG} 39. Ra8 {[%emt 0:02:48] BESTDEEP} Nd5 {[%emt 0:01:43] BESTDEEP} 40. Rh8+ {[%emt 0:00:22] CPLX 3.4 41 (Nc3-d1) (=33)} Kg5 {[%emt 0:00:05] [#] ( -> ...Nxc3). LEGAL} 41. Rd8 {[%emt 0:01:07] RELBLUND 400 (Nc3-d1) (=45)} Re3+ {[%emt 0:00:49] Weighted Error Value: White=0.60/Black=0.09 (flawless)} 0-1

[Event "Chhattisgarh Masters GM 2022"]
[Site "Chhattisgarh"]
[Date "2022.09.19"]
[Round "1.3"]
[White "Savchenko, Boris"]
[Black "Suvrajit, Saha"]
[Result "1-0"]
[ECO "A11"]
[WhiteElo "2547"]
[BlackElo "2176"]
[Annotator "TA"]
[PlyCount "95"]
[EventDate "2022.09.19"]
[EventCountry "IND"]
[SourceTitle "playchess.com"]
[Source "ChessBase"]
[SourceQuality "1"]
[TimeControl "5400+30"]

{[%evp 9,95,-7,51,20,35,-16,-5,-44,-39,-47,-32,-38,-27,-25,4,0,6,5,71,0,0,0,135,15,22,26,29,20,18,33,33,20,16,14,29,26,11,0,5,4,7,5,11,0,4,12,4,4,86,86,115,114,136,112,161,168,166,152,225,157,302,312,304,296,354,350,394,392,367,363,421,408,475,468,506,517,580,577,979,962,908,845,29967,29967,29949,6222,5181,1535]} 1. c4 {[%emt 0:00:10]} Nf6 {[%emt 0:00:27]} 2. g3 {[%emt 0:00:07]} c6 {[%emt 0:00:05]} 3. Nf3 {[%emt 0:00:07]} d5 {[%emt 0:00:15][%cal Bd7d5,Bd5c4,Bc4d3][%mdl 32]} 4. Bg2 {[%emt 0:00:07]} dxc4 {[%emt 0:03:10]} 5. O-O {[%emt 0:00:33]} Bf5 {[%emt 0:02:41]} (5... Nbd7 $11) 6. Na3 $14 {[%emt 0:07:05] A11: English Opening: 1...c6.} b5 {[%emt 0:05:19] was the old line (6...e6).} 7. d3 {[%emt 0:00:51]} (7. b3 $14) 7... cxd3 $11 {[%emt 0:05:21]} 8. Ne5 {[%emt 0:01:43][%csl LRc6,LRd3] Strongly threatening Nxb5. The position is equal.} Be4 {[%emt 0:05:21]} 9. Bxe4 {[%emt 0:02:47]} Nxe4 {[%emt 0:00:04] [#]} 10. Nxd3 $146 {[%emt 0:03:46]} ({Predecessor:} 10. exd3 Nf6 11. Be3 Qd5 12. d4 e6 13. Nb1 b4 14. a3 Nbd7 15. axb4 Bxb4 16. Nd3 {0-1 (41) Chernyshev,S (2134)-Mokin,N (2321) Cheliabinsk 2008}) 10... e6 {[%emt 0:02:35]} 11. Qc2 {[%emt 0:08:20]} Bxa3 {[%emt 0:18:30]} 12. bxa3 {[%emt 0:00:27]} O-O {[%emt 0:01:05]} 13. Bb2 {[%emt 0:12:43]} Qb6 {[%emt 0:06:09]} (13... Qe7 $11) 14. Rac1 {[%emt 0:11:47]} (14. Nf4 $16 Nd6 15. Qc3) 14... Nd6 {[%emt 0:09:48]} 15. Nf4 {[%emt 0:12:32]} Rd8 {[%emt 0:10:42] [#]} (15... Nc4 $11 {remains equal.}) 16. Rfd1 {[%emt 0:05:19] White is more active.} ({White must play} 16. Nh5 $1 $16) 16... Ne8 {[%emt 0:02:15]} 17. Qe4 {[%emt 0:00:21][%cal Of4e6]} Nd7 $1 {[%emt 0:06:46]} 18. Rxc6 {[%emt 0:05:32] Threatens to win with Rxd7.} Ndf6 {[%emt 0:01:23] [#]} 19. Rxd8 {[%emt 0:00:27] Dancing on a razor blade.} Qxd8 {[%emt 0:00:44]} 20. Qc2 {[%emt 0:02:28] Against Qd1+} a6 {[%emt 0:01:07]} 21. Nd3 {[%emt 0:02:34]} Nd5 {[%emt 0:01:37]} 22. Nc5 {[%emt 0:02:54]} a5 {[%emt 0:05:31]} 23. Qd3 {[%emt 0:05:36]} Ne7 {[%emt 0:04:04]} 24. Qxd8 {[%emt 0:00:11]} Rxd8 {[%emt 0:00:01]} 25. Ra6 {[%emt 0:01:31]} a4 {[%emt 0:02:34]} 26. Bc3 {[%emt 0:03:05]} Nd5 {[%emt 0:00:49]} 27. Ba5 $36 {[%emt 0:00:37][%mdl 2048] White is more active.} Rc8 {[%emt 0:00:11]} 28. e4 {[%emt 0:00:13]} Ndf6 {[%emt 0:01:12]} (28... Rxc5 $2 29. exd5 f5 30. dxe6 (30. Rxe6 Nf6 $16) 30... Rc1+ 31. Kg2 $18) (28... Ne7 $1 $11 29. Bb4 Nc6) 29. Bb4 $16 {[%emt 0:00:35] White leaves nothing to chance now.} Rb8 {[%emt 0:00:49]} 30. f3 {[%emt 0:00:55]} h5 {[%emt 0:00:23]} 31. Kf2 {[%emt 0:00:11]} Kh7 {[%emt 0:01:56]} (31... g5 $16 32. Rc6 g4) 32. Ra7 {[%emt 0:00:44]} Kg8 {[%emt 0:00:19]} 33. h4 {[%emt 0:03:10]} Nd6 {[%emt 0:01:33]} (33... Rc8 $16 {was called for.} 34. Ra6 Rd8) 34. Na6 {[%emt 0:00:28]} Nc8 {[%emt 0:00:43]} (34... Rd8 $16 {keeps fighting.}) 35. Rxf7 $18 {[%emt 0:00:16]} ({Resist} 35. Nxb8 $6 Nxa7 36. Ke3 Nh7 $18) 35... Kxf7 {[%emt 0:00:20]} 36. Nxb8 {[%emt 0:00:07][%mdl 4096] Endgame KBN-KNN} Nb6 {[%emt 0:00:32]} 37. Nc6 {[%emt 0:00:40]} Ne8 {[%emt 0:00:26]} 38. Nd4 {[%emt 0:00:36]} Nc7 {[%emt 0:01:01]} 39. Ba5 {[%emt 0:01:28]} Nba8 {[%emt 0:00:11]} 40. Ke3 {[%emt 0:00:14]} e5 {[%emt 0:00:25]} 41. Nc6 {[%emt 0:00:08]} Ke6 {[%emt 0:00:24]} 42. Bc3 {[%emt 0:00:19]} Nb6 {[%emt 0:00:40]} 43. Nxe5 {[%emt 0:02:31]} Nbd5+ {[%emt 0:00:00]} 44. exd5+ {[%emt 0:00:00]} Nxd5+ {[%emt 0:00:00]} 45. Kd3 {[%emt 0:00:00]} Nxc3 {[%emt 0:00:00]} 46. Kxc3 {[%emt 0:00:00]} Kxe5 {[%emt 0:00:00]} 47. Kd3 {[%emt 0:00:00]} (47. Kb4 $142 Kd4 48. Kxb5 Ke3 49. Kxa4 Kxf3 50. Kb5 Kxg3 51. a4 g5 52. hxg5) 47... Kd5 {[%emt 0:00:00]} 48. g4 {[%emt 0:00:00] Weighted Error Value: White=0.15 (very precise) /Black=0.48} 1-0

[Event "Chhattisgarh Masters GM 2022"]
[Site "Chhattisgarh"]
[Date "2022.09.19"]
[Round "1.3"]
[White "Neelash Saha"]
[Black "Harshal, Shahi"]
[Result "1-0"]
[ECO "E11"]
[WhiteElo "2454"]
[BlackElo "2136"]
[Annotator "TA"]
[PlyCount "69"]
[EventDate "2022.09.19"]
[EventCountry "IND"]
[SourceTitle "playchess.com"]
[Source "ChessBase"]
[SourceQuality "1"]
[TimeControl "5400+30"]

{[%evp 15,69,8,8,8,3,-10,0,0,12,23,34,29,34,18,59,57,51,62,53,54,56,0,0,0,0,0,9,0,6,6,10,10,25,18,34,33,92,77,90,101,130,124,284,282,280,191,472,454,921,895,896,907,1269,1297,1175,1133]} 1. d4 {[%emt 0:00:03]} Nf6 {[%emt 0:00:36]} 2. c4 {[%emt 0:00:09]} e6 {[%emt 0:00:32]} 3. g3 {[%emt 0:00:04]} d5 {[%emt 0:00:34]} 4. Nf3 {[%emt 0:00:06]} Bb4+ {[%emt 0:00:41]} 5. Bd2 {[%emt 0:00:16]} Be7 {[%emt 0:00:36]} 6. Bg2 {[%emt 0:00:04]} O-O {[%emt 0:00:56]} 7. O-O {[%emt 0:00:04]} c6 {[%emt 0:01:10]} 8. Qc2 {[%emt 0:00:06]} b6 {[%emt 0:00:57]} 9. Rd1 {[%emt 0:00:52] BESTDEEP 9.Rd1 is better than 9.Bf4. E11: Bogo-Indian.} Bb7 {[%emt 0:01:27]} 10. a4 {[%emt 0:02:15][%cal Ba2a4,Ba4a5][%mdl 32] CPLX 2.3 13 (Nb1-c3) (=7)} (10. Nc3 {is interesting.} dxc4 11. Ne5 Qxd4 12. Bf4) 10... Nbd7 {[%emt 0:04:13] CPLX 2.3 10 (a7-a5) (=3)} 11. a5 {[%emt 0:06:11] [#] Black must now prevent a6. CPLX 2.3. The position is equal.} Ba6 $146 {[%emt 0:07:19] CPLX 2.5 12 (Qd8-c8) (=6)} ({Predecessor:} 11... Qc8 12. cxd5 cxd5 13. Nc3 bxa5 14. Rxa5 Ne4 15. Bf4 Bb4 16. Raa1 Qc6 17. Rdc1 Rfc8 {½-½ (75) Stone,G (2338)-Smith,C (2314) ICCF email 2018}) 12. b3 {[%emt 0:01:45] BESTDEEP} Ne4 {[%emt 0:01:26] CPLX 2.5 11 (Qd8-c8) (=7)} 13. Be1 {[%emt 0:00:33] BESTDEEP} f5 {[%emt 0:28:11] CPLX 2.6 5 (Qd8-c8) (=6)} 14. e3 {[%emt 0:00:09] CPLX 2.8 16 (Nb1-c3) (=5)} Bd6 {[%emt 0:06:01] CPLX 2.8 41 (b6-b5) (=11)} 15. Bf1 {[%emt 0:03:26] BESTDEEP} b5 {[%emt 0:17:36] CPLX 2.9} 16. cxd5 {[%emt 0:13:51] BESTDEEP} cxd5 {[%emt 0:10:32] RECAPT} 17. Qc6 {[%emt 0:00:23][%csl LRa6,LRb5] EASY} Qc8 {[%emt 0:12:22] EASY} 18. Bxb5 {[%emt 0:01:20] CPLX 3.5 56 (Rd1-c1) (=9)} (18. Rc1 $14) 18... Bxb5 $11 {[%emt 0:03:40] RECAPT} 19. Qxb5 {[%emt 0:00:07] RECAPT} Rb8 {[%emt 0:00:13] CPLX 2.9} 20. Qd3 {[%emt 0:03:48] CPLX 3.3 0 (Qb5-f1) (=7)} Qb7 {[%emt 0:00:27] CPLX 2.8 9 (g7-g5) (=7)} 21. Nfd2 {[%emt 0:00:40] CPLX 2.9 9 (Nb1-c3) (=7)} Ndf6 {[%emt 0:00:30] CPLX 3.0 6 (Rf8-c8) (=7)} 22. f3 {[%emt 0:01:06] CPLX 3.0} Nxd2 {[%emt 0:00:44] CPLX 3.0} 23. Nxd2 {[%emt 0:00:04] RECAPT} Bb4 {[%emt 0:00:14] CPLX 2.3 15 (g7-g5) (=7)} 24. Nf1 {[%emt 0:01:06] BESTDEEP} Bxe1 {[%emt 0:00:29] CPLX 2.5 16 (Bb4-e7) (=7)} 25. Rxe1 {[%emt 0:00:04] RECAPT} Qxb3 {[%emt 0:00:50] CPLX 2.2 59 (Qb7-b5) (=10)} (25... Qb5 $14 26. Qxb5 Rxb5) 26. Qa6 $16 {[%emt 0:00:05][%csl LRa7,LRe6] EASY} Rfe8 {[%emt 0:00:36] CPLX 2.6 13 (Rf8-f7) (=10)} 27. Qxa7 {[%emt 0:00:32] EASY} Rb7 {[%emt 0:00:34] CPLX 3.0 29 (Qb3-c4) (=11)} 28. Qc5 {[%emt 0:01:17] CPLX 2.7} Ra8 $2 {[%emt 0:00:32] A mistake that costs the game. CPLX 2.6 160 (Nf6-d7) (=18)} (28... Nd7 $16 {might work better.} 29. Qd6 Qb4 30. Qxb4 Rxb4) 29. a6 $18 {[%emt 0:02:21] CPLX 2.6} Rb6 {[%emt 0:00:29] CPLX 3.1 0 (Rb7-a7) (=18)} 30. a7 {[%emt 0:00:40] [#] Nd2 is the strong threat. CPLX 3.0 89 (Nf1-d2) (=8)} Kf7 $2 {[%emt 0:01:03] CPLX 3.3 281 (Rb6-b7) (=29)} (30... Rb7 31. Ra6 Qc4) 31. Nd2 {[%emt 0:01:44] CPLX 4.4. White is clearly winning.} Qb4 {[%emt 0:00:00] EVAL 400 (Qb3-b5) (=44)} (31... Qb5 $142 32. Qc7+ Nd7) 32. Qc7+ {[%emt 0:00:10] EVAL} Kg6 {[%emt 0:00:24] EVAL} 33. Rab1 {[%emt 0:00:13] EVAL} Qxd2 {[%emt 0:00:22] BEVAL 362 (Qb4-a5) (=55)} 34. Qxb6 {[%emt 0:00:05] BEVAL} Rc8 {[%emt 0:00:39] BEVAL} 35. Rbd1 {[%emt 0:01:38] Weighted Error Value: White=0.10 (very precise) /Black=0.38} (35. Qxe6 {gets mated.} Rc2) 1-0